[Event "44th Chess Olympiad Open 2022"]
[Site "Chennai"]
[Date "2022.08.02"]
[Round "5.84"]
[White "Badji, Sekou Aransbene"]
[Black "Ismael Mohamed Goumaneh"]
[Result "0-1"]
[WhiteElo "1732"]
[BlackElo "1473"]
[Annotator "NA RC"]
[PlyCount "62"]
[EventDate "2022.??.??"]
[TimeControl "60"]

1. d4 {[%emt 1:31:00]} d5 {[%emt 0:01:18]} 2. Bf4 {[%emt 0:00:00]} Nf6 {
[%emt 0:01:11]} 3. e3 {[%emt 0:00:00]} Nbd7 {[%emt 0:00:55]} 4. Nf3 {[%emt 0:
00:00]} e6 {[%emt 0:00:13]} 5. Bd3 {[%emt 0:00:00]} Be7 {[%emt 0:00:09]} 6. c3
{[%emt 0:00:00]} c5 {[%emt 0:01:13]} 7. h3 {[%emt 0:00:00]} O-O {[%emt 0:00:41]
} 8. Nbd2 {[%emt 0:00:37]} Re8 {[%emt 0:01:28]} 9. O-O {[%emt 0:00:00]} Nf8 {
[%emt 0:00:55]} 10. Ne5 {[%emt 0:00:00]} N6d7 {[%emt 0:00:52]} 11. Ndf3 {
[%emt 0:00:00]} f6 {[%emt 0:00:03]} 12. Ng4 {[%emt 0:00:00]} h5 {[%emt 0:01:57]
} 13. Ngh2 {[%emt 0:00:00]} g5 {[%emt 0:00:23]} 14. Bg3 {[%emt 0:00:00]} h4 {
[%emt 0:00:05]} 15. Nxh4 {[%emt 0:00:00]} gxh4 {[%emt 0:00:55]} 16. Qg4+ {
[%emt 0:00:00]} Kf7 {[%emt 0:00:59]} 17. Qh5+ {[%emt 0:00:00]} Kg7 {[%emt 0:00:
00]} 18. Bxh4 {[%emt 0:00:00]} f5 {[%emt 0:01:05]} 19. Bg3 {[%emt 0:00:00]} Nf6
{[%emt 0:00:49]} 20. Qe2 {[%emt 0:00:00]} c4 {[%emt 0:00:40]} 21. Bc2 {[%emt 0:
00:00]} Ng6 {[%emt 0:00:10]} 22. f3 {[%emt 0:00:00]} Rh8 {[%emt 0:12:44]} 23.
e4 {[%emt 0:00:00]} Bd7 {[%emt 0:00:38]} 24. Rae1 {[%emt 0:00:00]} Rh6 {
[%emt 0:05:06]} 25. exd5 {[%emt 0:00:00]} exd5 {[%emt 0:00:03]} 26. Qd2 {
[%emt 0:00:00]} Nh5 {[%emt 0:02:59]} 27. Bf2 {[%emt 0:00:00]} Bg5 {[%emt 0:00:
00]} 28. Qd1 {[%emt 0:00:00]} Bf4 {[%emt 0:00:38]} 29. Be3 {[%emt 0:00:00]} Qg5
{[%emt 0:00:19]} 30. Qd2 {[%emt 0:00:00]} Rf8 {[%emt 0:08:25]} 31. Bxf4 {
[%emt 0:00:00]} Ngxf4 {[%emt 0:00:50]} 0-1

[Event "44th Chess Olympiad Open 2022"]
[Site "Chennai"]
[Date "2022.08.02"]
[Round "5.87"]
[White "Cabunagan, Tito"]
[Black "Conhoff, David"]
[Result "1-0"]
[WhiteElo "1706"]
[BlackElo "1460"]
[Annotator "NA RC"]
[PlyCount "85"]
[EventDate "2022.??.??"]
[TimeControl "60"]

1. e4 {[%emt 0:00:02]} e5 {[%emt 0:00:17]} 2. Nf3 {[%emt 0:00:14]} Nc6 {
[%emt 0:00:24]} 3. Bb5 {[%emt 0:00:12]} Bc5 {[%emt 0:03:14]} 4. Bxc6 {[%emt 0:
00:00]} dxc6 {[%emt 0:00:22]} 5. d3 {[%emt 0:00:36]} f6 {[%emt 0:05:39]} 6. O-O
{[%emt 0:00:21]} Ne7 {[%emt 0:04:49]} 7. c3 {[%emt 0:01:51]} O-O {[%emt 0:00:
00]} 8. d4 {[%emt 0:00:35]} Bd6 {[%emt 0:05:50]} 9. dxe5 {[%emt 0:00:26]} fxe5
{[%emt 0:09:37]} 10. h3 {[%emt 0:00:03]} b5 {[%emt 0:07:09]} 11. Ng5 {[%emt 0:
00:00]} g6 {[%emt 0:12:07]} 12. Qb3+ {[%emt 0:01:20]} Kg7 {[%emt 0:02:55]} 13.
Ne6+ {[%emt 0:00:09]} Bxe6 {[%emt 0:00:08]} 14. Qxe6 {[%emt 0:00:11]} Ng8 {
[%emt 0:02:42]} 15. Be3 {[%emt 0:00:54]} Re8 {[%emt 0:06:12]} 16. Qb3 {[%emt 0:
00:00]} a6 {[%emt 0:01:24]} 17. Nd2 {[%emt 0:00:19]} Rb8 {[%emt 0:01:21]} 18.
Nf3 {[%emt 0:00:09]} Qd7 {[%emt 0:02:29]} 19. Qc2 {[%emt 0:00:14]} c5 {[%emt 0:
00:00]} 20. Rad1 {[%emt 0:00:31]} Qc6 {[%emt 0:01:12]} 21. Nh2 {[%emt 0:01:36]}
c4 {[%emt 0:02:17]} 22. a3 {[%emt 0:00:26]} Bc5 {[%emt 0:01:10]} 23. Bxc5 {
[%emt 0:00:34]} Qxc5 {[%emt 0:00:07]} 24. Rd5 {[%emt 0:01:23]} Qb6 {[%emt 0:00:
00]} 25. Nf3 {[%emt 0:00:20]} c6 {[%emt 0:00:25]} 26. Rxe5 {[%emt 0:00:22]}
Rxe5 {[%emt 0:00:02]} 27. Nxe5 {[%emt 0:00:33]} Re8 {[%emt 0:00:27]} 28. Nf3 {
[%emt 0:01:08]} Nf6 {[%emt 0:00:52]} 29. e5 {[%emt 0:00:42]} Nd7 {[%emt 0:00:
00]} 30. Re1 {[%emt 0:00:05]} Qc7 {[%emt 0:01:07]} 31. Qe4 {[%emt 0:00:44]} Nc5
{[%emt 0:01:04]} 32. Qd4 {[%emt 0:00:18]} Ne6 {[%emt 0:02:18]} 33. Qg4 {
[%emt 0:00:14]} h5 {[%emt 0:03:06]} 34. Qg3 {[%emt 0:02:26]} Qa5 {[%emt 0:00:
00]} 35. Nh4 {[%emt 0:00:41]} g5 {[%emt 0:01:06]} 36. Nf5+ {[%emt 0:01:32]} Kg6
{[%emt 0:00:34]} 37. Qf3 {[%emt 0:00:50]} Rf8 {[%emt 0:01:13]} 38. Ne7+ {
[%emt 0:00:02]} Kh6 {[%emt 0:00:32]} 39. Qxc6 {[%emt 0:00:03]} Kg7 {[%emt 0:00:
00]} 40. Qxe6 {[%emt 0:00:33]} Rf7 {[%emt 0:01:43]} 41. Nf5+ {[%emt 0:31:10]}
Kf8 {[%emt 0:30:21]} 42. Qc8+ {[%emt 0:03:56]} Qd8 {[%emt 0:00:42]} 43. Qxd8# {
[%emt 0:00:17]} 1-0

[Event "44th Chess Olympiad Open 2022"]
[Site "Chennai"]
[Date "2022.08.02"]
[Round "5.87"]
[White "Hair, Justin M"]
[Black "Salvadora, Angelo"]
[Result "1/2-1/2"]
[WhiteElo "1505"]
[BlackElo "1711"]
[Annotator "NA RC"]
[PlyCount "87"]
[EventDate "2022.??.??"]
[TimeControl "60"]

1. e4 {[%emt 0:00:09]} d5 {[%emt 0:00:09]} 2. exd5 {[%emt 0:00:18]} Nf6 {
[%emt 0:00:33]} 3. c4 {[%emt 0:01:49]} Bg4 {[%emt 0:00:33]} 4. Nf3 {[%emt 0:00:
00]} e6 {[%emt 0:02:10]} 5. dxe6 {[%emt 0:02:17]} Bxe6 {[%emt 0:03:04]} 6. Ng5
{[%emt 0:02:46]} Bf5 {[%emt 0:01:11]} 7. Qf3 {[%emt 0:06:17]} Qe7+ {[%emt 0:00:
00]} 8. Qe3 {[%emt 0:05:29]} Qxe3+ {[%emt 0:00:46]} 9. fxe3 {[%emt 0:00:43]}
Nc6 {[%emt 0:01:04]} 10. Be2 {[%emt 0:00:52]} Be7 {[%emt 0:03:29]} 11. O-O {
[%emt 0:00:48]} Bg6 {[%emt 0:00:25]} 12. Nc3 {[%emt 0:00:56]} a6 {[%emt 0:00:
00]} 13. d4 {[%emt 0:01:22]} O-O {[%emt 0:00:32]} 14. Bf3 {[%emt 0:01:41]} Bd3
{[%emt 0:03:08]} 15. Be2 {[%emt 0:02:28]} Bg6 {[%emt 0:01:06]} 16. b3 {[%emt 0:
00:00]} Nb4 {[%emt 0:00:30]} 17. a3 {[%emt 0:07:38]} Nc6 {[%emt 0:04:44]} 18.
Nh3 {[%emt 0:03:09]} Na5 {[%emt 0:03:55]} 19. Bd1 {[%emt 0:04:50]} Bd3 {
[%emt 0:00:41]} 20. Rf2 {[%emt 0:07:37]} h5 {[%emt 0:09:18]} 21. Nf4 {[%emt 0:
00:00]} Bg6 {[%emt 0:04:15]} 22. Nxg6 {[%emt 0:00:53]} fxg6 {[%emt 0:00:12]}
23. Bd2 {[%emt 0:04:37]} b6 {[%emt 0:02:01]} 24. Nd5 {[%emt 0:03:50]} Nxd5 {
[%emt 0:01:49]} 25. Rxf8+ {[%emt 0:01:49]} Rxf8 {[%emt 0:00:11]} 26. cxd5 {
[%emt 0:00:13]} c5 {[%emt 0:06:41]} 27. dxc6 {[%emt 0:05:06]} Nxc6 {[%emt 0:00:
00]} 28. Bf3 {[%emt 0:00:36]} Nb8 {[%emt 0:04:52]} 29. Bb4 {[%emt 0:01:38]}
Bxb4 {[%emt 0:03:06]} 30. axb4 {[%emt 0:00:12]} Rf6 {[%emt 0:03:20]} 31. Rc1 {
[%emt 0:05:00]} b5 {[%emt 0:10:27]} 32. Rc8+ {[%emt 0:00:46]} Rf8 {[%emt 0:00:
00]} 33. Rxf8+ {[%emt 0:00:08]} Kxf8 {[%emt 0:00:26]} 34. d5 {[%emt 0:00:17]}
Ke7 {[%emt 0:00:33]} 35. e4 {[%emt 0:01:02]} Kd6 {[%emt 0:04:43]} 36. Kf2 {
[%emt 0:00:24]} Nd7 {[%emt 0:02:31]} 37. Ke3 {[%emt 0:01:23]} Ke5 {[%emt 0:00:
00]} 38. g4 {[%emt 0:02:03]} Nf6 {[%emt 0:02:22]} 39. h3 {[%emt 0:04:55]} h4 {
[%emt 0:04:56]} 40. g5 {[%emt 0:02:34]} Nh7 {[%emt 0:00:49]} 41. d6 {[%emt 0:
00:00]} Nxg5 {[%emt 0:32:02]} 42. d7 {[%emt 0:02:01]} Nf7 {[%emt 0:01:21]} 43.
Bg4 {[%emt 0:00:43]} g5 {[%emt 0:02:56]} 44. Bf5 {[%emt 0:03:18]} 1/2-1/2

[Event "44th Chess Olympiad Open 2022"]
[Site "Chennai"]
[Date "2022.08.02"]
[Round "5.87"]
[White "Bansal, Nayan"]
[Black "Reklai Reece"]
[Result "1-0"]
[WhiteElo "1444"]
[BlackElo "1351"]
[Annotator "NA RC"]
[PlyCount "115"]
[EventDate "2022.??.??"]
[TimeControl "60"]

1. e4 {[%emt 0:00:04]} e6 {[%emt 0:00:27]} 2. d4 {[%emt 0:00:41]} d5 {[%emt 0:
00:00]} 3. exd5 {[%emt 0:00:37]} exd5 {[%emt 0:01:13]} 4. Nf3 {[%emt 0:00:00]}
Nf6 {[%emt 0:00:58]} 5. g3 {[%emt 0:02:08]} Nc6 {[%emt 0:01:44]} 6. Bg2 {
[%emt 0:00:45]} Be6 {[%emt 0:01:45]} 7. O-O {[%emt 0:01:51]} Be7 {[%emt 0:00:
00]} 8. Nbd2 {[%emt 0:03:16]} Qd7 {[%emt 0:01:57]} 9. Re1 {[%emt 0:01:25]}
O-O-O {[%emt 0:01:28]} 10. c3 {[%emt 0:05:12]} h5 {[%emt 0:03:16]} 11. h4 {
[%emt 0:09:52]} Bh3 {[%emt 0:00:26]} 12. Ng5 {[%emt 0:06:43]} Bxg2 {[%emt 0:00:
00]} 13. Kxg2 {[%emt 0:00:01]} Bd6 {[%emt 0:10:10]} 14. Nb3 {[%emt 0:07:50]}
Ne4 {[%emt 0:05:56]} 15. Nxe4 {[%emt 0:05:28]} dxe4 {[%emt 0:02:01]} 16. Rxe4 {
[%emt 0:00:09]} f5 {[%emt 0:00:35]} 17. Re2 {[%emt 0:01:48]} g6 {[%emt 0:00:30]
} 18. Bg5 {[%emt 0:00:57]} Rdf8 {[%emt 0:12:22]} 19. f4 {[%emt 0:02:05]} Re8 {
[%emt 0:00:36]} 20. Bf6 {[%emt 0:02:44]} Rxe2+ {[%emt 0:01:41]} 21. Qxe2 {
[%emt 0:00:10]} Re8 {[%emt 0:00:21]} 22. Be5 {[%emt 0:00:45]} Nd8 {[%emt 0:00:
00]} 23. Qc4 {[%emt 0:11:07]} b5 {[%emt 0:03:39]} 24. Qd5 {[%emt 0:01:19]} Qc6
{[%emt 0:00:29]} 25. Qxc6 {[%emt 0:01:22]} Nxc6 {[%emt 0:00:12]} 26. Kf2 {
[%emt 0:00:54]} a5 {[%emt 0:00:34]} 27. Re1 {[%emt 0:01:06]} b4 {[%emt 0:01:15]
} 28. Bxd6 {[%emt 0:02:22]} Rxe1 {[%emt 0:00:33]} 29. Kxe1 {[%emt 0:00:07]}
cxd6 {[%emt 0:00:10]} 30. d5 {[%emt 0:00:48]} a4 {[%emt 0:02:02]} 31. dxc6 {
[%emt 0:00:42]} axb3 {[%emt 0:00:17]} 32. axb3 {[%emt 0:00:20]} bxc3 {[%emt 0:
00:00]} 33. bxc3 {[%emt 0:00:16]} Kc7 {[%emt 0:00:22]} 34. Kd2 {[%emt 0:00:20]}
Kxc6 {[%emt 0:00:15]} 35. Kd3 {[%emt 0:00:01]} Kc5 {[%emt 0:09:14]} 36. b4+ {
[%emt 0:02:57]} Kb5 {[%emt 0:00:36]} 37. Kd4 {[%emt 0:00:14]} Kc6 {[%emt 0:00:
00]} 38. c4 {[%emt 0:00:32]} Kb6 {[%emt 0:01:30]} 39. Kd5 {[%emt 0:00:15]} Kc7
{[%emt 0:00:16]} 40. c5 {[%emt 0:00:45]} dxc5 {[%emt 0:00:20]} 41. bxc5 {
[%emt 0:30:12]} Kd7 {[%emt 0:30:19]} 42. c6+ {[%emt 0:00:24]} Kc7 {[%emt 0:00:
00]} 43. Ke6 {[%emt 0:00:00]} Kxc6 {[%emt 0:00:17]} 44. Kf6 {[%emt 0:00:09]}
Kd5 {[%emt 0:00:19]} 45. Kxg6 {[%emt 0:00:11]} Ke6 {[%emt 0:01:41]} 46. Kxh5 {
[%emt 0:00:18]} Kf6 {[%emt 0:00:17]} 47. Kh6 {[%emt 0:00:17]} Kf7 {[%emt 0:00:
00]} 48. Kg5 {[%emt 0:00:10]} Kg7 {[%emt 0:00:16]} 49. Kxf5 {[%emt 0:00:21]}
Kf7 {[%emt 0:00:36]} 50. h5 {[%emt 0:00:41]} Kg7 {[%emt 0:00:18]} 51. Ke6 {
[%emt 0:00:40]} Kf8 {[%emt 0:02:08]} 52. f5 {[%emt 0:00:23]} Kg8 {[%emt 0:00:
00]} 53. Ke7 {[%emt 0:00:24]} Kg7 {[%emt 0:00:54]} 54. f6+ {[%emt 0:00:40]} Kg8
{[%emt 0:00:12]} 55. f7+ {[%emt 0:00:26]} Kh7 {[%emt 0:00:28]} 56. h6 {[%emt 0:
00:00]} Kg6 {[%emt 0:01:54]} 57. f8=Q {[%emt 0:00:23]} Kh5 {[%emt 0:00:40]} 58.
h7 {[%emt 0:00:29]} 1-0

[Event "44th Chess Olympiad Open 2022"]
[Site "Chennai"]
[Date "2022.08.02"]
[Round "5.90"]
[White "Escalante Ramirez, Brian Sebasti"]
[Black "Kourakoumba, Florent"]
[Result "1-0"]
[WhiteElo "2496"]
[BlackElo "1677"]
[Annotator "RC"]
[PlyCount "119"]
[EventDate "2022.??.??"]
[TimeControl "60"]

1. c4 {[%emt 0:00:42]} e6 {[%emt 0:00:21]} 2. Nc3 {[%emt 0:00:16]} Nf6 {
[%emt 0:00:23]} 3. g3 {[%emt 0:00:28]} c6 {[%emt 0:00:49]} 4. Bg2 {[%emt 0:00:
00]} d5 {[%emt 0:00:28]} 5. cxd5 {[%emt 0:00:47]} exd5 {[%emt 0:00:45]} 6. d4 {
[%emt 0:00:57]} Bb4 {[%emt 0:00:18]} 7. e3 {[%emt 0:00:36]} O-O {[%emt 0:00:11]
} 8. Nge2 {[%emt 0:00:33]} Bg4 {[%emt 0:00:25]} 9. O-O {[%emt 0:00:18]} Na6 {
[%emt 0:00:18]} 10. Bd2 {[%emt 0:01:46]} Bd6 {[%emt 0:00:36]} 11. a3 {[%emt 0:
00:00]} Nc7 {[%emt 0:01:00]} 12. Rc1 {[%emt 0:01:13]} Qc8 {[%emt 0:00:27]} 13.
Re1 {[%emt 0:03:26]} Ne6 {[%emt 0:00:34]} 14. Nxd5 {[%emt 0:01:21]} Nxd5 {
[%emt 0:00:36]} 15. Bxd5 {[%emt 0:00:15]} Qd7 {[%emt 0:00:43]} 16. Bg2 {
[%emt 0:00:24]} Rae8 {[%emt 0:00:25]} 17. Qa4 {[%emt 0:01:14]} Ng5 {[%emt 0:00:
00]} 18. Kf1 {[%emt 0:06:18]} Nf3 {[%emt 0:00:46]} 19. Bxf3 {[%emt 0:00:34]}
Bxf3 {[%emt 0:00:19]} 20. Ng1 {[%emt 0:00:08]} Bg4 {[%emt 0:01:38]} 21. Kg2 {
[%emt 0:00:52]} b5 {[%emt 0:01:09]} 22. Qc2 {[%emt 0:00:46]} Rc8 {[%emt 0:00:
00]} 23. f3 {[%emt 0:01:23]} Bh5 {[%emt 0:00:22]} 24. Bc3 {[%emt 0:01:31]} f6 {
[%emt 0:00:27]} 25. Qd2 {[%emt 0:00:55]} Rfe8 {[%emt 0:00:32]} 26. e4 {[%emt 0:
00:00]} Qf7 {[%emt 0:01:53]} 27. Qf2 {[%emt 0:03:43]} a6 {[%emt 0:00:30]} 28.
b4 {[%emt 0:02:54]} Bg6 {[%emt 0:01:23]} 29. Bb2 {[%emt 0:01:51]} h6 {[%emt 0:
00:00]} 30. Re3 {[%emt 0:00:36]} Bb8 {[%emt 0:00:29]} 31. Rec3 {[%emt 0:01:19]}
Qd7 {[%emt 0:00:48]} 32. Qd2 {[%emt 0:07:24]} Bf7 {[%emt 0:00:19]} 33. Ne2 {
[%emt 0:02:52]} Ba7 {[%emt 0:00:56]} 34. Rd1 {[%emt 0:01:27]} Red8 {[%emt 0:00:
00]} 35. Rcc1 {[%emt 0:02:02]} f5 {[%emt 0:00:23]} 36. e5 {[%emt 0:06:08]} Bd5
{[%emt 0:01:35]} 37. Nf4 {[%emt 0:00:15]} Kh7 {[%emt 0:01:08]} 38. Nxd5 {
[%emt 0:00:47]} cxd5 {[%emt 0:00:36]} 39. Rxc8 {[%emt 0:02:27]} Rxc8 {[%emt 0:
00:00]} 40. Rc1 {[%emt 0:00:30]} Rc4 {[%emt 0:00:14]} 41. Rxc4 {[%emt 0:30:07]}
bxc4 {[%emt 0:30:32]} 42. Qc2 {[%emt 0:02:14]} g6 {[%emt 0:00:31]} 43. h4 {
[%emt 0:01:29]} Kg7 {[%emt 0:00:19]} 44. Qd2 {[%emt 0:01:29]} Kh7 {[%emt 0:00:
00]} 45. Bc1 {[%emt 0:01:21]} Qg7 {[%emt 0:00:15]} 46. Qf4 {[%emt 0:04:40]} Bb8
{[%emt 0:00:27]} 47. a4 {[%emt 0:01:04]} Bc7 {[%emt 0:00:13]} 48. b5 {[%emt 0:
00:00]} axb5 {[%emt 0:00:20]} 49. axb5 {[%emt 0:00:02]} Bd8 {[%emt 0:00:59]}
50. e6 {[%emt 0:03:32]} Bc7 {[%emt 0:00:19]} 51. Qxh6+ {[%emt 0:00:19]} Qxh6 {
[%emt 0:00:55]} 52. Bxh6 {[%emt 0:00:03]} Bd6 {[%emt 0:00:41]} 53. Bf4 {
[%emt 0:01:15]} Be7 {[%emt 0:00:17]} 54. b6 {[%emt 0:00:13]} c3 {[%emt 0:00:28]
} 55. b7 {[%emt 0:00:22]} c2 {[%emt 0:01:40]} 56. b8=Q {[%emt 0:00:14]} g5 {
[%emt 0:00:17]} 57. hxg5 {[%emt 0:00:35]} Kg7 {[%emt 0:02:10]} 58. Qc7 {
[%emt 0:00:24]} Kg6 {[%emt 0:00:14]} 59. Qxe7 {[%emt 0:00:52]} c1=Q {[%emt 0:
00:00]} 60. Qf7# {[%emt 0:00:02]} 1-0

[Event "44th Chess Olympiad Open 2022"]
[Site "Chennai"]
[Date "2022.08.02"]
[Round "5.90"]
[White "Koualet-Bebondi, Vianney Archeveq"]
[Black "Enemchukwu Chinedu Benjamin"]
[Result "0-1"]
[WhiteElo "1679"]
[BlackElo "1889"]
[Annotator "NA RC"]
[PlyCount "116"]
[EventDate "2022.??.??"]
[TimeControl "60"]

1. e4 {[%emt 0:00:10]} c5 {[%emt 0:00:06]} 2. Nc3 {[%emt 0:00:32]} Nc6 {
[%emt 0:00:25]} 3. Nf3 {[%emt 0:00:20]} d6 {[%emt 0:00:32]} 4. Bc4 {[%emt 0:00:
00]} Nf6 {[%emt 0:00:21]} 5. h3 {[%emt 0:02:24]} g6 {[%emt 0:00:35]} 6. O-O {
[%emt 0:01:28]} Bg7 {[%emt 0:00:01]} 7. Nh2 {[%emt 0:00:17]} O-O {[%emt 0:00:
00]} 8. d3 {[%emt 0:00:56]} a6 {[%emt 0:00:48]} 9. Be3 {[%emt 0:01:24]} e6 {
[%emt 0:01:31]} 10. Bb3 {[%emt 0:02:06]} b5 {[%emt 0:00:20]} 11. Ne2 {[%emt 0:
00:00]} Nxe4 {[%emt 0:01:14]} 12. dxe4 {[%emt 0:01:16]} c4 {[%emt 0:00:09]} 13.
Bxc4 {[%emt 0:00:22]} bxc4 {[%emt 0:00:07]} 14. c3 {[%emt 0:01:10]} Qc7 {
[%emt 0:01:32]} 15. Nd4 {[%emt 0:02:42]} Rb8 {[%emt 0:04:13]} 16. Rb1 {[%emt 0:
00:00]} Nxd4 {[%emt 0:01:11]} 17. Bxd4 {[%emt 0:00:26]} e5 {[%emt 0:00:47]} 18.
Be3 {[%emt 0:00:24]} f5 {[%emt 0:00:31]} 19. f3 {[%emt 0:01:15]} fxe4 {[%emt 0:
00:00]} 20. fxe4 {[%emt 0:00:57]} Bb7 {[%emt 0:00:18]} 21. b3 {[%emt 0:03:04]}
Bxe4 {[%emt 0:00:31]} 22. Rb2 {[%emt 0:00:30]} Bd3 {[%emt 0:01:12]} 23. Rf3 {
[%emt 0:02:35]} e4 {[%emt 0:00:37]} 24. Rxf8+ {[%emt 0:01:18]} Rxf8 {[%emt 0:
00:00]} 25. Qd2 {[%emt 0:00:36]} Qa5 {[%emt 0:04:11]} 26. b4 {[%emt 0:01:32]}
Qa3 {[%emt 0:00:09]} 27. Rc2 {[%emt 0:09:36]} Bxc2 {[%emt 0:01:11]} 28. Qxc2 {
[%emt 0:00:47]} Qxc3 {[%emt 0:00:33]} 29. Qxc3 {[%emt 0:00:51]} Bxc3 {[%emt 0:
00:00]} 30. Ng4 {[%emt 0:01:06]} d5 {[%emt 0:00:51]} 31. Bc5 {[%emt 0:00:57]}
h5 {[%emt 0:02:52]} 32. Ne3 {[%emt 0:03:18]} d4 {[%emt 0:02:46]} 33. Nd5 {
[%emt 0:07:51]} e3 {[%emt 0:01:26]} 34. Nxc3 {[%emt 0:00:43]} dxc3 {[%emt 0:00:
00]} 35. Bxe3 {[%emt 0:00:21]} c2 {[%emt 0:00:24]} 36. a4 {[%emt 0:02:21]} Re8
{[%emt 0:00:09]} 37. Bg5 {[%emt 0:00:44]} c1=Q+ {[%emt 0:00:25]} 38. Bxc1 {
[%emt 0:00:32]} Re1+ {[%emt 0:00:07]} 39. Kf2 {[%emt 0:00:16]} Rxc1 {[%emt 0:
00:00]} 40. b5 {[%emt 0:00:20]} axb5 {[%emt 0:00:04]} 41. axb5 {[%emt 0:30:08]}
Rb1 {[%emt 0:30:15]} 42. Ke3 {[%emt 0:00:21]} Rxb5 {[%emt 0:00:10]} 43. Kd4 {
[%emt 0:00:35]} Rg5 {[%emt 0:00:12]} 44. Kxc4 {[%emt 0:00:18]} Rxg2 {[%emt 0:
00:00]} 45. Kd3 {[%emt 0:00:08]} Rf2 {[%emt 0:00:21]} 46. Ke3 {[%emt 0:00:18]}
Rf8 {[%emt 0:00:16]} 47. Ke4 {[%emt 0:00:26]} g5 {[%emt 0:00:09]} 48. Ke3 {
[%emt 0:00:11]} g4 {[%emt 0:00:05]} 49. hxg4 {[%emt 0:00:13]} hxg4 {[%emt 0:00:
00]} 50. Ke4 {[%emt 0:00:18]} g3 {[%emt 0:00:14]} 51. Ke3 {[%emt 0:00:54]} g2 {
[%emt 0:00:26]} 52. Ke4 {[%emt 0:00:05]} g1=Q {[%emt 0:00:09]} 53. Ke5 {
[%emt 0:00:18]} Qe1+ {[%emt 0:00:09]} 54. Kd6 {[%emt 0:00:15]} Rd8+ {[%emt 0:
00:00]} 55. Kc7 {[%emt 0:00:10]} Rd2 {[%emt 0:00:06]} 56. Kc6 {[%emt 0:00:19]}
Qc1+ {[%emt 0:00:55]} 57. Kb5 {[%emt 0:00:21]} Rb2+ {[%emt 0:00:09]} 58. Ka4 {
[%emt 0:00:15]} Qa1# {[%emt 0:00:17]} 0-1

[Event "44th Chess Olympiad Open 2022"]
[Site "Chennai"]
[Date "2022.08.02"]
[Round "5.91"]
[White "Jones, Rupert"]
[Black "Ihsan Mohamed N T"]
[Result "1-0"]
[WhiteElo "1766"]
[BlackElo "1208"]
[Annotator "NA RC"]
[PlyCount "79"]
[EventDate "2022.??.??"]
[TimeControl "60"]

1. e4 {[%emt 0:00:03]} e5 {[%emt 0:00:04]} 2. Nf3 {[%emt 0:01:12]} Nc6 {
[%emt 0:00:31]} 3. Bb5 {[%emt 0:00:02]} a6 {[%emt 0:00:53]} 4. Ba4 {[%emt 0:00:
00]} Bc5 {[%emt 0:00:19]} 5. O-O {[%emt 0:00:42]} Nf6 {[%emt 0:00:48]} 6. d3 {
[%emt 0:01:30]} O-O {[%emt 0:00:19]} 7. Bxc6 {[%emt 0:01:03]} dxc6 {[%emt 0:00:
00]} 8. Nxe5 {[%emt 0:00:25]} Bd4 {[%emt 0:05:02]} 9. Nc4 {[%emt 0:03:16]} Bg4
{[%emt 0:01:34]} 10. Qe1 {[%emt 0:00:12]} b6 {[%emt 0:02:37]} 11. c3 {[%emt 0:
00:00]} Bc5 {[%emt 0:03:29]} 12. d4 {[%emt 0:00:51]} Be6 {[%emt 0:05:59]} 13.
Ne3 {[%emt 0:02:03]} Be7 {[%emt 0:01:47]} 14. Nd2 {[%emt 0:02:55]} Nh5 {
[%emt 0:05:14]} 15. g3 {[%emt 0:01:13]} Bh3 {[%emt 0:02:03]} 16. Ng2 {[%emt 0:
00:00]} Bd6 {[%emt 0:04:53]} 17. e5 {[%emt 0:01:07]} Be7 {[%emt 0:00:38]} 18.
Qe2 {[%emt 0:03:12]} g6 {[%emt 0:01:10]} 19. Re1 {[%emt 0:06:28]} f5 {[%emt 0:
00:00]} 20. exf6 {[%emt 0:03:08]} Rxf6 {[%emt 0:01:06]} 21. Qxe7 {[%emt 0:00:
00]} Qxe7 {[%emt 0:00:25]} 22. Rxe7 {[%emt 0:00:03]} Rf7 {[%emt 0:02:47]} 23.
Rxf7 {[%emt 0:00:33]} Kxf7 {[%emt 0:00:20]} 24. Ne4 {[%emt 0:00:53]} h6 {
[%emt 0:00:29]} 25. Bxh6 {[%emt 0:00:51]} Rh8 {[%emt 0:01:56]} 26. Be3 {
[%emt 0:01:48]} Ke8 {[%emt 0:01:43]} 27. Ng5 {[%emt 0:00:45]} Bd7 {[%emt 0:00:
00]} 28. Nf4 {[%emt 0:05:57]} Bf5 {[%emt 0:02:15]} 29. Re1 {[%emt 0:03:39]} Ng7
{[%emt 0:01:10]} 30. d5 {[%emt 0:01:12]} c5 {[%emt 0:00:40]} 31. Bxc5+ {
[%emt 0:01:12]} Kd8 {[%emt 0:03:13]} 32. Nf7+ {[%emt 0:00:10]} Kc8 {[%emt 0:00:
00]} 33. Nxh8 {[%emt 0:00:15]} Kb7 {[%emt 0:00:26]} 34. Bd4 {[%emt 0:00:36]}
Bd7 {[%emt 0:00:41]} 35. Bxg7 {[%emt 0:00:19]} a5 {[%emt 0:00:32]} 36. Re7 {
[%emt 0:00:07]} Bb5 {[%emt 0:00:59]} 37. d6 {[%emt 0:01:04]} Ka6 {[%emt 0:00:
00]} 38. Rxc7 {[%emt 0:00:16]} Be8 {[%emt 0:00:18]} 39. Bd4 {[%emt 0:02:20]} b5
{[%emt 0:03:37]} 40. Ra7# {[%emt 0:00:19]} 1-0